fUST/lending_fUST_20240505
["ID","MTS","AMOUNT","RATE_DAILY","PERIOD"]
[325439210,1714894234032,-500.0,0.00021917,2]
[325439211,1714894234041,-503.24322711,0.00021917,2]
[325439212,1714894234053,-500.0,0.00021917,2]
[325439213,1714894234062,-500.0,0.00021917,2]
[325439214,1714894234071,-1000.0,0.00021917,2]
[325439215,1714894234080,-576.16,0.00021917,2]
[325439216,1714894234089,-501.61751701,0.00021917,2]
[325439217,1714894234098,-500.0,0.00021917,2]
[325439218,1714894234106,-500.0,0.00021917,2]
[325439219,1714894234115,-509.29,0.00021917,2]
[325439220,1714894234124,-500.0,0.00021917,2]
[325439221,1714894234134,-502.31101107,0.00021917,2]
[325439222,1714894234143,-549.51159916,0.00021917,2]
[325439223,1714894234152,-500.0,0.00021917,2]
[325439224,1714894234162,-500.0,0.00021917,2]
[325439225,1714894234172,-500.0,0.00021917,2]
[325439226,1714894234181,-500.0,0.00021917,2]
[325439227,1714894234190,-500.0,0.00021917,2]
[325439228,1714894234199,-500.0,0.00021917,2]
[325439229,1714894234209,-500.0,0.00021917,2]
[325439230,1714894234219,-500.0,0.00021917,2]
[325439231,1714894234229,-500.0,0.00021917,2]
[325439232,1714894234238,-501.37180829,0.00021917,2]
[325439233,1714894234247,-500.0,0.00021917,2]
[325439234,1714894234256,-500.0,0.00021917,2]
[325439235,1714894234266,-500.0,0.00021917,2]
[325439236,1714894234275,-501.49097521,0.00021917,2]
[325439237,1714894234285,-500.57337492,0.00021917,2]
[325439238,1714894234294,-500.0,0.00021917,2]
[325439239,1714894234307,-500.0,0.00021917,2]
[325439240,1714894234318,-30.64314902,0.00021917,2]
[325439315,1714894241091,-418.87991753,0.00021917,2]
[325439342,1714894319134,1142.38825377,9.999e-05,2]
[325439343,1714894319156,253.8762046,9.999e-05,2]
[325439355,1714894658033,212.47908276,9.999e-05,2]
[325439368,1714895122132,1678.99,0.000211,6]
[325439369,1714895131188,-403.01039065,0.00019178,2]
[325439370,1714895131210,-1.15599172,0.00019817,2]
[325439371,1714895239162,-197.28718586,0.00019,2]
[325439372,1714895239186,-150.0,0.00020355,3]
[325439373,1714895239206,-150.0,0.00020595,3]
[325439374,1714895239228,-150.0,0.00020835,3]
[325439375,1714895239250,-612.09660954,0.00020913,2]
[325439391,1714895360091,775.48383193,0.00019723,2]
[325439392,1714895415585,1211.51378914,0.00019723,2]
[325439393,1714895415608,2033.64180405,0.00019723,2]
[325439394,1714895415629,2046.73,0.00019723,2]
[325439395,1714895415662,2008.86926536,0.00019723,2]
[325439421,1714895431780,-12017.7064917,0.00019723,2]
[325439423,1714895431790,-1386.03616769,0.00019723,2]
[325439425,1714895431799,-150.0,0.00020372,3]
[325439427,1714895431809,-150.0,0.00020611,3]
[325439428,1714895431818,-931.72478894,0.00020819,2]
[325439429,1714895431828,-160.48836737,0.00020819,2]
[325439430,1714895431837,-150.0,0.00020849,3]
[325439431,1714895431847,-728.34564318,0.00020913,2]
[325439529,1714895440013,-17050.3637215,0.00020913,2]
[325439530,1714895440024,-150.0,0.00021088,3]
[325439531,1714895440034,-493.0,0.0002128,2]
[325439532,1714895440044,-151.24914043,0.00021817,2]
[325439533,1714895440054,-477.13188681,0.00021915,2]
[325439534,1714895440064,-521.36939513,0.00021915,2]
[325439535,1714895440073,-1577.44370859,0.00021915,2]
[325439536,1714895440083,-488.51147253,0.00021915,2]
[325439537,1714895440094,-213.09718416,0.00021915,2]
[325439538,1714895440103,-310.17122056,0.00021915,2]
[325439539,1714895440113,-700.89457381,0.00021915,2]
[325439540,1714895440122,-1492.55196417,0.00021915,2]
[325439541,1714895440132,-1287.51420877,0.00021916,2]
[325439542,1714895440142,-20000.00000001,0.00021917,2]
[325439543,1714895440152,-500.0,0.00021917,2]
[325439544,1714895440161,-501.91601233,0.00021917,2]
[325439545,1714895440171,-500.0,0.00021917,2]
[325439546,1714895440181,-503.78471779,0.00021917,2]
[325439547,1714895440190,-500.0,0.00021917,2]
[325439548,1714895440199,-502.7065139,0.00021917,2]
[325439549,1714895440209,-500.0,0.00021917,2]
[325439550,1714895440218,-501.93301413,0.00021917,2]
[325439551,1714895440228,-500.0,0.00021917,2]
[325439552,1714895440238,-500.0,0.00021917,2]
[325439553,1714895440250,-504.87058978,0.00021917,2]
[325439554,1714895440260,-514.23391236,0.00021917,2]
[325439555,1714895440270,-500.0,0.00021917,2]
[325439556,1714895440279,-501.23248872,0.00021917,2]
[325439557,1714895440290,-637.02,0.00021917,2]
[325439558,1714895440301,-503.38419809,0.00021917,2]
[325439559,1714895440310,-500.0,0.00021917,2]
[325439560,1714895440321,-500.0,0.00021917,2]
[325439561,1714895440331,-500.0,0.00021917,2]
[325439562,1714895440342,-500.0,0.00021917,2]
[325439563,1714895440351,-500.0,0.00021917,2]
[325439564,1714895440360,-500.0,0.00021917,2]
[325439565,1714895440369,-500.0,0.00021917,2]
[325439566,1714895440519,-500.0,0.00021917,2]
[325439567,1714895440529,-500.0,0.00021917,2]
[325439568,1714895440538,-500.0,0.00021917,2]
[325439569,1714895440547,-300.0,0.00021917,2]
[325439570,1714895440557,-500.0,0.00021917,2]
[325439571,1714895440566,-500.0,0.00021917,2]
[325439572,1714895440576,-500.0,0.00021917,2]
[325439573,1714895440585,-500.0,0.00021917,2]
[325439574,1714895440594,-570.48,0.00021917,2]
[325439575,1714895440603,-500.0,0.00021917,2]
[325439576,1714895440612,-300.0,0.00021917,2]
[325439577,1714895440622,-1128.17,0.00021917,2]
[325439578,1714895440632,-906.11707643,0.00021917,2]
[325439658,1714895445866,-150.0,0.00020372,3]
[325439659,1714895445876,-120.15863328,0.00021917,2]
[325439660,1714895446543,469.31894033,9.999e-05,2]
[325439661,1714895458821,317.84135,0.000212,13]
[325439662,1714895466912,273.37336231,0.000212,13]
[325439663,1714895475731,273.37336231,0.000212,13]
[325439664,1714895484275,273.37336231,0.000212,13]
[325439665,1714895489769,473.483309,9.999e-05,2]
[325439667,1714895492560,273.37336231,0.000212,13]
[325439725,1714895910234,2665.4071636,0.00016436,2]
[325439726,1714895934101,154.70605849,0.00016436,2]
[325439727,1714895951175,154.70605849,0.00016436,2]
[325439728,1714895954103,225.97777112,0.00016436,2]
[325439729,1714895955621,19213.68269661,0.00016436,2]
[325439730,1714895963180,154.70605849,0.00016436,2]
[325439731,1714895969579,19213.68269661,0.00016436,2]
[325439732,1714895979174,236.0512273,0.00016436,2]
[325439733,1714895989601,19213.68269661,0.00016436,2]
[325439734,1714896011601,19213.68269661,0.00016436,2]
[325439735,1714896029594,7790.2627965,0.00016436,2]
[325439736,1714896074493,158.10655597,9.999e-05,2]
[325439737,1714896086345,527.33215381,9.999e-05,2]
[325439738,1714896091372,200.0,0.00023806,120]
[325439739,1714896153633,208.28124262,9.999e-05,2]
[325439740,1714896193073,815.983981,9.999e-05,2]
[325439741,1714896350424,-443.50234748,0.00018691,2]
[325439742,1714896367069,1092.51303732,9.999e-05,2]
[325439743,1714896430207,281.00456017,9.999e-05,2]
[325439744,1714896437655,16116.02117607,9.999e-05,2]
[325439745,1714896443899,154.70605849,9.999e-05,2]
[325439746,1714896446214,342.70907839,9.999e-05,2]
[325439747,1714896453658,5794.00843421,9.999e-05,2]
[325439748,1714896459539,744.23187513,0.000138,2]
[325439749,1714896529628,200.25116986,9.999e-05,2]
[325439750,1714896534598,212.47908276,9.999e-05,2]
[325439751,1714896548250,-250.0,0.00017762,2]
[325439752,1714896548270,-1274.3507978,0.00018131,2]
[325439753,1714896548292,-485.97682993,0.00018691,2]
[325439754,1714896548311,-794.8939744,0.00018692,2]
[325439755,1714896548332,-12540.9292519,0.00018692,2]
[325439756,1714896548356,-24900.0,0.00018767,2]
[325439757,1714896548378,-1247.03824537,0.000189,2]
[325439758,1714896548399,-1019.3266711,0.00019244,2]
[325439759,1714896548417,-500.0,0.00019334,2]
[325439760,1714896548436,-500.0,0.00019334,2]
[325439761,1714896548457,-500.0,0.00019334,2]
[325439762,1714896548477,-645.0,0.00019334,2]
[325439763,1714896548500,-500.0,0.00019334,2]
[325439764,1714896548520,-500.0,0.00019334,2]
[325439765,1714896548542,-500.0,0.00019334,2]
[325439766,1714896548567,-25298.7431177,0.00019335,2]
[325439767,1714896548587,-161.643618,0.00019512,2]
[325439768,1714896548611,-769.1530622,0.00019723,2]
[325439769,1714896592620,470.17131428,9.999e-05,2]
[325439770,1714896592648,213.70055025,9.999e-05,2]
[325439771,1714896598221,793.44154841,9.999e-05,2]
[325439772,1714896630862,200.0,0.00024499,120]
[325439813,1714896632386,312.53389328,0.00019178,2]
[325439818,1714896633059,405.0,0.00019178,2]
[325439836,1714896640090,-1064.0353701,0.00019767,2]
[325439982,1714896644366,309.66400806,9.999e-05,2]
[325439985,1714896644386,163.81930094,9.999e-05,2]
[325440106,1714896671764,1536.41733703,9.999e-05,2]
[325440107,1714896671786,86.73275264,9.999e-05,2]
[325440108,1714896673172,154.70605849,9.999e-05,2]
[325440109,1714896675761,1120.05120162,9.999e-05,2]
[325440110,1714896684320,683.35890535,0.00019451,2]
[325440111,1714896691553,412.53907123,9.999e-05,2]
[325440112,1714896692699,154.70605849,9.999e-05,2]
[325440113,1714896696852,1146.99564374,0.00015,2]
[325440114,1714896697323,154.70605849,9.999e-05,2]
[325440115,1714896697910,291.9748613,9.999e-05,2]
[325440116,1714896709661,154.70605849,9.999e-05,2]
[325440117,1714896712521,1893.53190728,9.999e-05,2]
[325440118,1714896715471,206.55715969,9.999e-05,2]
[325440119,1714896715505,1578.01513402,9.999e-05,2]
[325440120,1714896719269,1679.61395979,0.00015,2]
[325440121,1714896727365,154.70605849,9.999e-05,2]
[325440122,1714896727600,1314.25442234,0.0001,2]
[325440123,1714896730508,701.13917553,9.999e-05,2]
[325440124,1714896740383,315.15765538,9.999e-05,2]
[325440125,1714896740567,154.70605849,9.999e-05,2]
[325440126,1714896746946,154.70605849,9.999e-05,2]
[325440127,1714896749954,475.62429208,9.999e-05,2]
[325440128,1714896750016,1493.11557101,9.999e-05,2]
[325440129,1714896750090,236.03459787,9.999e-05,2]
[325440130,1714896751612,154.70605849,9.999e-05,2]
[325440131,1714896754976,154.70605849,9.999e-05,2]
[325440132,1714896763980,1396.26445837,9.999e-05,2]
[325440133,1714896773213,186.48709187,9.999e-05,2]
[325440134,1714896782348,154.70605849,9.999e-05,2]
[325440135,1714896840211,815.983981,9.999e-05,2]
[325440137,1714897100548,25529.238159,0.00016627,2]
[325440138,1714897110797,200.0,0.00024599,120]
[325440140,1714897158536,933.617695,0.00016625,2]
[325440141,1714897189638,1092.51303732,9.999e-05,2]
[325440142,1714897227018,154.70605849,9.999e-05,2]
[325440143,1714897231172,212.47908276,9.999e-05,2]
[325440145,1714897277164,744.23187513,0.000138,2]
[325440146,1714897279663,793.44154841,9.999e-05,2]
[325440147,1714897351067,200.0,0.00026253,120]
[325440148,1714897417802,690.7120763,0.0001641,2]
[325440149,1714897422499,1680.730482,0.0001628,2]
[325440150,1714897435662,186.960544,0.0001628,2]
[325440151,1714897446497,250.0,0.00016373,2]
[325440152,1714897470887,200.0,0.00026445,120]
[325440153,1714897521617,683.87186453,9.999e-05,2]
[325440154,1714897531950,154.70605849,9.999e-05,2]
[325440155,1714897549145,-154.70605849,0.00017129,2]
[325440156,1714897549170,-154.70605849,0.0001713,2]
[325440157,1714897549195,-1073.13208092,0.00017131,2]
[325440158,1714897745132,-154.70605849,0.00017131,2]
[325440159,1714897745155,-3054.26266903,0.00017149,2]
[325440160,1714897745176,-2152.34442277,0.0001715,2]
[325440161,1714897745200,-1335.4385131,0.00017151,2]
[325440162,1714897745220,-1183.9877573,0.00017239,2]
[325440163,1714897745242,-24900.0,0.00017697,2]
[325440164,1714897745265,-151.94811849,0.000188,2]
[325440165,1714897745285,-881.35883025,0.000189,2]
[325440166,1714897745305,-405.80250936,0.00019178,2]
[325440167,1714897745325,-161.643618,0.00019178,2]
[325440168,1714897745346,-156.6217304,0.000197,2]
[325440169,1714897745367,-156.62173038,0.000197,2]
[325440170,1714897745387,-156.62173038,0.000197,2]
[325440171,1714897745769,521.62280651,9.999e-05,2]
[325440174,1714897761102,1531.48911646,0.00018972,2]
[325440175,1714897761123,2049.21908785,0.00018972,2]
[325440176,1714897761145,694.29179569,0.00018972,2]
[325440177,1714897761256,154.70605849,0.00017131,2]
[325440178,1714897768585,154.70605849,0.00018998,2]
[325440179,1714897781249,154.70605849,0.00017131,2]
[325440180,1714897784592,154.70605849,0.00018998,2]
[325440181,1714897799372,154.70605849,0.00018998,2]
[325440182,1714897804589,154.70605849,0.00018998,2]
[325440183,1714897820594,154.70605849,0.00018998,2]
[325440184,1714897821263,154.70605849,0.00018998,2]
[325440277,1714897832533,-151.94811846,0.00019805,2]
[325440279,1714897832543,-275.53460552,0.00019998,2]
[325440281,1714897832552,-174.27896363,0.00019998,2]
[325440283,1714897832562,-155.27582849,0.00019998,2]
[325440285,1714897832572,-1755.20791476,0.00019998,2]
[325440288,1714897832582,-1689.7371471,0.00019998,2]
[325440289,1714897832591,-237.05785878,0.00019998,2]
[325440291,1714897832600,-155.0721743,0.00019998,2]
[325440293,1714897832609,-475.99974667,0.00019998,2]
[325440295,1714897832618,-196.29816724,0.00019998,2]
[325440297,1714897832627,-154.84509312,0.00019998,2]
[325440299,1714897832636,-1172.73611601,0.00019998,2]
[325440301,1714897832645,-237.39205289,0.00019998,2]
[325440303,1714897832655,-815.0203087,0.00019998,2]
[325440305,1714897832665,-1097.57336272,0.00019998,2]
[325440307,1714897832674,-255.53007889,0.00019998,2]
[325440309,1714897832683,-706.24160265,0.00019998,2]
[325440310,1714897832693,-718.47186682,0.00019998,2]
[325440311,1714897832703,-685.02880676,0.00019998,2]
[325440313,1714897832713,-155.17244872,0.00019998,2]
[325440314,1714897832723,-266.32276827,0.00019998,2]
[325440315,1714897832732,-186.93151823,0.00019998,2]
[325440316,1714897832742,-1503.38372329,0.00019998,2]
[325440317,1714897832751,-521.11598375,0.00019999,2]
[325440318,1714897832762,-696.59569281,0.00019999,2]
[325440319,1714897832771,-158.9744088,0.0002,2]
[325440320,1714897832780,-532.46413697,0.0002,2]
[325440321,1714897832790,-23432.32606452,0.0002,2]
[325440322,1714897837287,41.93973639,0.00018998,2]
[325440323,1714897837307,176.46705778,0.00018998,2]
[325440344,1714897838211,-450.0,0.00019999,2]
[325440345,1714897838220,-500.0,0.00019999,2]
[325440346,1714897838229,-500.0,0.00019999,2]
[325440347,1714897838239,-227.43023741,0.00019999,2]
[325440348,1714897838248,-500.0,0.00019999,2]
[325440349,1714897838258,-86.56729135,0.00019999,2]
[325440350,1714897838493,-413.43270865,0.00019999,2]
[325440351,1714897838503,-500.0,0.00019999,2]
[325440352,1714897838512,-206.10450933,0.0002,2]
[325440353,1714897838525,-1038.09200799,0.0002,2]
[325440354,1714897838594,154.70605849,0.00018998,2]
[325440365,1714897840416,-5203.74691087,0.0002,2]
[325440393,1714897846155,-5907.6,0.0002,2]
[325440395,1714897846279,-14303.72321058,0.0002,2]
[325440398,1714897862656,1396.26445837,9.999e-05,2]
[325440399,1714897875072,232.56242536,9.999e-05,2]
[325440400,1714897875101,240.92088364,9.999e-05,2]
[325440401,1714897884389,208.28124262,9.999e-05,2]
[325440402,1714897884616,291.9748613,9.999e-05,2]
[325440403,1714897890267,200.25116986,9.999e-05,2]
[325440404,1714897892673,701.13917553,9.999e-05,2]
[325440405,1714897910294,409.6003669,9.999e-05,2]
[325440406,1714897920343,154.70605849,9.999e-05,2]
[325440407,1714898038798,1623.15008967,9.999e-05,2]
[325440409,1714898557258,1396.26445837,9.999e-05,2]
[325440410,1714898732164,-195.02880549,0.000189,2]
[325440411,1714898834114,-163.81930094,0.000189,2]
[325440412,1714898876055,-358.74365073,0.000189,2]
[325440413,1714898876081,-832.25634927,0.00019038,2]
[325440414,1714898945109,-4080.37180405,0.000189,2]
[325440415,1714898945130,-198.3156555,0.00019004,2]
[325440416,1714898945151,-486.74059883,0.00019038,2]
[325440417,1714898945174,-500.0,0.00019178,2]
[325440418,1714898945197,-550.0,0.00019178,2]
[325440419,1714898945218,-303.04780416,0.00019178,2]
[325440420,1714898945238,-336.35107272,0.00019178,2]
[325440421,1714898945260,-154.7215013,0.0001923,2]
[325440422,1714898945281,-1208.811902,0.00019231,2]
[325440423,1714898945303,-250.0,0.00019324,2]
[325440475,1714899032543,-654.807435,0.0002,2]
[325440477,1714899032552,-643.85979586,0.0002,2]
[325440479,1714899032562,-532.46413697,0.0002,2]
[325440481,1714899032572,-150.0,0.00020236,3]
[325440483,1714899032581,-154.7215013,0.00020716,2]
[325440485,1714899032590,-151.94811846,0.00020717,2]
[325440487,1714899032599,-2565.71323877,0.00020816,2]
[325440489,1714899032610,-7952.294237,0.00020816,2]
[325440491,1714899032622,-383.7998292,0.00020816,2]
[325440622,1714899038335,-1507.56776405,0.00020816,2]
[325440623,1714899038391,-2809.52827267,0.00020816,2]
[325440637,1714899040606,-1190.91958837,0.00020816,2]
[325440638,1714899040792,-2046.73,0.00020816,2]
[325440690,1714899043479,-4275.0,0.00020816,2]
[325440691,1714899043583,-6277.74389837,0.00020816,2]
[325440702,1714899076035,793.44154841,9.999e-05,2]
[325440703,1714899077987,701.13917553,9.999e-05,2]
[325440704,1714899081017,284.84165677,9.999e-05,2]
[325440705,1714899081039,124.75871013,9.999e-05,2]
[325440706,1714899089407,1623.15008967,9.999e-05,2]
[325440707,1714899109034,183.0212002,0.000189,2]
[325440708,1714899109054,165.35410091,0.000189,2]
[325440709,1714899122931,200.25116986,9.999e-05,2]
[325440710,1714899163363,291.9748613,9.999e-05,2]
[325440715,1714899452180,683.87186453,9.999e-05,2]
[325440716,1714899557877,1396.26445837,9.999e-05,2]
[325440718,1714899959169,-166.48960869,0.00018792,2]
[325440719,1714899959189,-33.68246016,0.0001884,2]
[325440722,1714900161141,-15685.91315358,0.00018847,2]
[325440723,1714900161161,-2592.81035582,0.00018848,2]
[325440724,1714900161179,-972.852612,0.00018849,2]
[325440725,1714900161198,-232.63553131,0.000189,2]
[325440726,1714900161219,-161.032701,0.00019273,2]
[325440727,1714900216266,154.70605849,9.999e-05,2]
[325440755,1714900232449,-4468.21043428,0.0002,2]
[325440757,1714900232458,-655.10009439,0.0002,2]
[325440759,1714900232467,-1613.26151518,0.000201,3]
[325440761,1714900232478,-288.23984587,0.000201,3]
[325440763,1714900232487,-1140.77686445,0.00020299,2]
[325440765,1714900232497,-151.94811846,0.00020719,2]
[325440778,1714900232639,-5372.46366362,0.00020816,2]
[325440779,1714900232660,-3451.0318513,0.00020816,2]
[325440780,1714900232669,-621.4054497,0.00020819,2]
[325440781,1714900232679,-154.69061876,0.00020819,2]
[325440782,1714900232689,-187.33043204,0.00020911,2]
[325440783,1714900232698,-155.38900538,0.00020911,2]
[325440784,1714900232708,-2634.24540233,0.00020913,2]
[325440785,1714900232717,-224.465506,0.00020913,2]
[325440786,1714900232727,-151.0,0.00020913,2]
[325440787,1714900232736,-204.852931,0.00020913,2]
[325440788,1714900232746,-204.20454175,0.00021,2]
[325440789,1714900232755,-677.07743528,0.00021,5]
[325440790,1714900232764,-406.89709736,0.00021,2]
[325440791,1714900232774,-105.1154921,0.00021199,2]
[325440792,1714900235308,683.3589053,0.00019722,2]
[325440843,1714900238784,-22.24134098,0.00021199,2]
[325440846,1714900238806,-863.79516626,0.00021199,2]
[325440847,1714900238817,-2099.86671029,0.000212,2]
[325440849,1714900238827,-308.38815489,0.000212,2]
[325440851,1714900238837,-170.28,0.0002165,3]
[325440854,1714900238846,-510.84,0.0002165,3]
[325440856,1714900238856,-162.623681,0.0002166,2]
[325440858,1714900238866,-151.0,0.0002166,2]
[325440860,1714900238878,-269.541524,0.0002166,2]
[325440862,1714900238889,-269.541524,0.0002166,2]
[325440863,1714900238898,-151.0,0.0002166,2]
[325440866,1714900238908,-151.0,0.0002166,2]
[325440868,1714900238917,-156.529796,0.0002166,2]
[325440870,1714900238928,-151.0,0.0002166,2]
[325440871,1714900238938,-216.06741239,0.00021817,2]
[325440873,1714900238948,-5000.0,0.000219,2]
[325440875,1714900238957,-450.0,0.00021912,2]
[325440877,1714900238967,-5264.14770451,0.00021913,2]
[325440880,1714900238978,-1795.52420106,0.00021913,2]
[325440970,1714900320669,793.44154841,9.999e-05,2]
[325440972,1714901227350,-155.09035421,0.00019813,2]
[325440973,1714901227370,-256.65986554,0.00019886,2]
[325440974,1714901247120,-636.45330456,0.00019886,2]
[325440975,1714901345144,-397.17984622,0.000189,2]
[325440976,1714901345164,-486.426306,0.00019683,2]
[325440980,1714901412611,405.80250936,0.00019178,2]
[325441014,1714901432661,-154.70605849,0.00019886,2]
[325441016,1714901432670,-2592.81035582,0.00019999,2]
[325441018,1714901432680,-589.37558136,0.0002,2]
[325441020,1714901432689,-154.70605849,0.00020819,2]
[325441022,1714901432698,-624.69978532,0.00020911,2]
[325441024,1714901432706,-991.15199934,0.00021,2]
[325441026,1714901432715,-189.943988,0.00021817,2]
[325441028,1714901432724,-340.56,0.00021905,3]
[325441029,1714901432733,-5000.0,0.00021912,2]
[325441030,1714901432741,-422.9794641,0.00021913,2]
[325441031,1714901432750,-268.86731514,0.00021913,2]
[325441032,1714901432760,-154.89431468,0.00021913,2]
[325441033,1714901432769,-7877.46126103,0.00021913,2]
[325441034,1714901432778,-618.45916302,0.00021913,2]
[325441035,1714901432786,-19226.98780327,0.00021913,2]
[325441058,1714901439138,-1790.00061626,0.00021913,2]
[325441105,1714901443864,-373.96449856,0.00021913,2]
[325441107,1714901443876,-371.54,0.00021913,2]
[325441110,1714901443889,-378.94199999,0.00021913,2]
[325441652,1714901453142,701.13917553,9.999e-05,2]
[325441653,1714901480514,154.70605849,9.999e-05,2]
[194,1714908641222,-94.84552629,0.00021914,2]
[196,1714908641237,-708.65982156,0.00021915,2]
[198,1714908641279,-607.27798179,0.00021915,2]
[199,1714908641297,-4496.76511466,0.00021915,2]
[200,1714908641312,-158.96226266,0.00021915,2]
[201,1714908641327,-529.93148801,0.00021915,2]
[202,1714908641342,-308.98340641,0.00021915,2]
[203,1714908641357,-155.15542076,0.00021915,2]
[204,1714908641372,-2.29687807,0.00021915,2]
[244,1714908644778,-294.1794177,0.00021915,2]
[246,1714908644788,-155.26045833,0.00021915,2]
[730,1714909840062,-2825.058978,0.00021915,2]
[732,1714909840073,-154.7215013,0.00021915,2]
[733,1714909840083,-409.15172533,0.00021915,2]
[734,1714909840093,-200.62543739,0.00021915,2]
[735,1714909840103,-683.36498519,0.00021915,2]
[736,1714909840114,-1120.05120162,0.00021915,2]
[737,1714909840124,-3054.26266903,0.00021915,2]
[738,1714909840133,-2152.34442277,0.00021915,2]
[739,1714909840143,-521.62280651,0.00021915,2]
[740,1714909840153,-1058.19100618,0.00021915,2]
[741,1714909840163,-352.21989767,0.00021915,2]
[742,1714909840173,-2149.85086855,0.00021915,2]
[743,1714909840183,-1395.86161104,0.00021915,2]
[744,1714909840194,-699.91616693,0.00021915,2]
[745,1714909840203,-155.07694504,0.00021915,2]
[746,1714909840214,-155.02553463,0.00021915,2]
[748,1714909840234,-946.03332791,0.00021915,2]
[749,1714909840245,-721.11979743,0.00021915,2]
[750,1714909840255,-154.80698629,0.00021915,2]
[752,1714909840275,-5481.99047917,0.00021915,2]
[753,1714909840285,-246.18942704,0.00021915,2]
[754,1714909840295,-1629.6251943,0.00021915,2]
[755,1714909840305,-151.0,0.00021915,2]
[756,1714909840314,-152.535387,0.00021915,2]
[757,1714909840324,-164.679198,0.00021915,2]
[758,1714909840333,-151.0,0.00021915,2]
[759,1714909840343,-4.55141125,0.00021915,2]
[778,1714909845974,-146.44858875,0.00021915,2]
[779,1714909845984,-151.0,0.00021915,2]
[780,1714909845994,-151.0,0.00021915,2]
[781,1714909846004,-151.0,0.00021915,2]
[782,1714909846014,-151.0,0.00021915,2]
[783,1714909846024,-151.0,0.00021915,2]
[784,1714909846034,-151.0,0.00021915,2]
[785,1714909846044,-151.0,0.00021915,2]
[787,1714909846053,-242.587372,0.00021915,2]
[788,1714909846063,-242.587372,0.00021915,2]
[789,1714909846073,-242.587372,0.00021915,2]
[790,1714909846082,-242.587372,0.00021915,2]
[791,1714909846092,-242.587372,0.00021915,2]
[792,1714909846101,-242.587372,0.00021915,2]
[793,1714909846111,-151.0,0.00021915,2]
[794,1714909846121,-151.0,0.00021915,2]
[795,1714909846130,-153.981484,0.00021915,2]
[796,1714909846139,-169.988279,0.00021915,2]
[797,1714909846206,-151.0,0.00021915,2]
[798,1714909846216,-151.0,0.00021915,2]
[799,1714909846225,-260.278047,0.00021915,2]
[800,1714909846234,-151.0,0.00021915,2]
[801,1714909846244,-151.0,0.00021915,2]
[802,1714909846254,-151.0,0.00021915,2]
[803,1714909846263,-151.0,0.00021915,2]
[805,1714909846282,-212.066572,0.00021915,2]
[806,1714909846292,-151.0,0.00021915,2]
[807,1714909846301,-151.0,0.00021915,2]
[814,1714909846366,-246.284595,0.00021915,2]
[822,1714909846440,-170.488537,0.00021915,2]
[834,1714909846567,-151.0,0.00021915,2]
[836,1714909846586,-151.0,0.00021915,2]
[837,1714909846597,-155.444296,0.00021915,2]
[838,1714909846607,-520.964588,0.00021915,2]
[839,1714909846616,-358.969544,0.00021915,2]
[840,1714909846627,-358.969544,0.00021915,2]
[841,1714909846637,-520.964588,0.00021915,2]
[842,1714909846647,-358.969544,0.00021915,2]
[843,1714909846658,-358.969544,0.00021915,2]
[844,1714909846668,-520.964588,0.00021915,2]
[845,1714909846678,-520.964588,0.00021915,2]
[846,1714909846687,-358.969544,0.00021915,2]
[847,1714909846697,-358.969544,0.00021915,2]
[848,1714909846707,-358.969544,0.00021915,2]
[849,1714909846716,-358.969544,0.00021915,2]
[851,1714909846736,-520.964588,0.00021915,2]
[852,1714909846746,-520.964588,0.00021915,2]
[853,1714909846757,-520.964588,0.00021915,2]
[854,1714909846766,-192.992055,0.00021915,2]